lending/lending_fUSD_20251021
["ID","MTS","AMOUNT","RATE_DAILY","PERIOD"]
[391939337,1761013837549,-1000.0,0.00017985,2]
[391939338,1761013837560,-1000.0,0.00017985,2]
[391939339,1761013837569,-1000.0,0.00017985,2]
[391939340,1761013837579,-250.0,0.00017985,2]
[391939341,1761013837588,-1000.0,0.00017985,2]
[391939342,1761013837598,-1000.0,0.00017985,2]
[391939343,1761013837609,-250.0,0.00017985,2]
[391939344,1761013837619,-1000.0,0.00017985,2]
[391939345,1761013837629,-500.0,0.00017985,2]
[391939346,1761013837638,-250.0,0.00017985,2]
[391939347,1761013837649,-463.02860902,0.00017985,2]
[391939348,1761013837659,-500.0,0.00017985,2]
[391939349,1761013837668,-250.0,0.00017985,2]
[391939350,1761013837679,-500.0,0.00017985,2]
[391939351,1761013837688,-250.0,0.00017985,2]
[391939353,1761013837698,-500.0,0.00017985,2]
[391939355,1761013837707,-250.0,0.00017985,2]
[391939357,1761013837717,-322.6107,0.00017985,2]
[391939359,1761013837725,-600.0,0.00017985,2]
[391939361,1761013837735,-250.0,0.00017985,2]
[391939363,1761013837744,-155.0994958,0.00017985,2]
[391939365,1761013837754,-250.0,0.00017985,2]
[391939367,1761013837764,-250.0,0.00017985,2]
[391939369,1761013837773,-250.0,0.00017985,2]
[391939371,1761013837782,-296.1103695,0.00017985,2]
[391939373,1761013837790,-250.0,0.00017985,2]
[391939375,1761013837799,-250.0,0.00017985,2]
[391939377,1761013837808,-250.0,0.00017985,2]
[391939379,1761013837817,-250.0,0.00017985,2]
[391939381,1761013837826,-307.21427078,0.00017985,2]
[391939383,1761013837835,-296.91727084,0.00017997,2]
[391939385,1761013837844,-18633.37561808,0.00018,2]
[391939387,1761013837855,-2087.9056839,0.00018,2]
[391939389,1761013837866,-643.35245097,0.00018,2]
[391939391,1761013837877,-1227.7658167,0.00018,2]
[391939393,1761013837888,-451.96024887,0.00018,2]
[391939396,1761013837899,-37300.000012,0.00018,2]
[391939602,1761013839597,-65154.39528759,0.00018,2]
[391939605,1761013839607,-34259.65993093,0.00018,2]
[391939608,1761013839617,-10586.15,0.00018007,2]
[391939611,1761013839626,-1788.86,0.00018022,2]
[391939614,1761013839635,-522.08,0.00018064,2]
[391939617,1761013839644,-250.0,0.00018242,2]
[391939620,1761013839653,-500.0,0.0001846,2]
[391939623,1761013839662,-500.0,0.0001846,2]
[391939626,1761013839672,-150.99,0.00018533,2]
[391939629,1761013839681,-500.0,0.00018556,2]
[391939632,1761013839690,-1788.86,0.00018623,2]
[391939635,1761013839699,-150.59,0.000188,2]
[391939638,1761013839709,-500.71394037,0.00019008,2]
[391939641,1761013839719,-13848.38824716,0.00019162,2]
[391939644,1761013839728,-15584.70140735,0.00019164,2]
[391939647,1761013839737,-1788.86,0.00019224,2]
[391939650,1761013839746,-529.0,0.00019246,2]
[391939653,1761013839755,-383.6721332,0.00019354,2]
[391939656,1761013839765,-326.86774132,0.00019354,2]
[391939659,1761013839774,-500.0,0.00019362,2]
[391939662,1761013839784,-150.0,0.00019362,2]
[391939665,1761013839794,-150.0,0.00019362,2]
[391939668,1761013839804,-158.66435505,0.00019362,2]
[391939671,1761013839816,-191.99666738,0.00019362,2]
[391939674,1761013839826,-156.24445888,0.00019362,2]
[391939677,1761013839837,-150.0,0.00019362,2]
[391939679,1761013839846,-150.0,0.00019362,2]
[391939681,1761013839857,-156.05625151,0.00019362,2]
[391939683,1761013839868,-150.0,0.00019362,2]
[391939685,1761013839878,-155.10307099,0.00019362,2]
[391939687,1761013839888,-156.00949905,0.00019362,2]
[391939689,1761013839898,-150.0,0.00019362,2]
[391939704,1761013840023,-150.0,0.00019362,2]
[391939706,1761013840033,-151.51852117,0.00019362,2]
[391939708,1761013840042,-150.0,0.00019362,2]
[391939710,1761013840051,-500.0,0.00019362,2]
[391939712,1761013840066,-500.0,0.00019362,2]
[391939714,1761013840075,-500.0,0.00019362,2]
[391939715,1761013840083,-500.0,0.00019362,2]
[391939718,1761013840093,-500.0,0.00019362,2]
[391939719,1761013840102,-212.78000242,0.00019362,2]
[391939721,1761013840111,-500.0,0.00019417,2]
[391939723,1761013840120,-150.0,0.00019417,2]
[391939725,1761013840129,-150.0,0.00019417,2]
[391939727,1761013840138,-157.83222953,0.00019417,2]
[391939729,1761013840148,-178.04654721,0.00019417,2]
[391939732,1761013840157,-150.0,0.00019417,2]
[391939734,1761013840167,-161.51153033,0.00019417,2]
[391939736,1761013840177,-500.0,0.00019472,2]
[391939738,1761013840187,-206.2530113,0.00019472,2]
[391939740,1761013840197,-199.99999984,0.00019472,2]
[391939741,1761013840206,-206.11646393,0.00019472,2]
[391939743,1761013840215,-279.9613152,0.00019526,2]
[391939746,1761013840230,-153.0,0.00019542,2]
[391939748,1761013840240,-503.45288921,0.000197,2]
[391939750,1761013840249,-501.11402236,0.000197,2]
[391939752,1761013840259,-1788.86,0.00019824,2]
[391939754,1761013840269,-481.71547924,0.000199,2]
[391939755,1761013840278,-150.59,0.0001999,2]
[391939757,1761013840287,-150.59,0.0001999,2]
[391939759,1761013840297,-20000.01167419,0.0002,2]
[391939761,1761013840309,-26708.20079597,0.0002,2]
[391939763,1761013840320,-994.9479152,0.0002,2]
[391939796,1761013840638,-1.6e-07,0.0002,2]
[391939797,1761013840649,-448.14729079,0.0002,2]
[391939798,1761013840681,-381319.68379893,0.0002,2]
[391939800,1761013840690,-2029.65942193,0.0002,14]
[391939802,1761013840699,-267.78911913,0.0002,7]
[391939803,1761013840708,-160.0,0.0002,2]
[391939804,1761013840717,-527.942454,0.0002,7]
[391939805,1761013840726,-372.69,0.00020187,2]
[391939806,1761013840734,-1788.86,0.00020425,2]
[391939807,1761013840743,-205.32032025,0.00020469,2]
[391939808,1761013840752,-1314.465,0.00020624,2]
[391939809,1761013840761,-902.0,0.00020624,2]
[391939810,1761013840770,-1184.0,0.00020624,2]
[391939811,1761013840779,-2548.0,0.00020624,2]
[391939812,1761013840788,-850.0,0.00020624,2]
[391939813,1761013840797,-2591.0,0.00020624,2]
[391939814,1761013840808,-573.252,0.00020624,2]
[391939815,1761013840818,-1492.79976652,0.0002085,2]
[391939816,1761013840827,-1788.86,0.00021026,2]
[391939817,1761013840835,-44.43927976,0.00021032,2]
[391939827,1761013842575,-261.37,0.0002,7]
[391939828,1761013842605,-266.572454,0.0002,7]
[391939829,1761013842615,-173.347546,0.0002,7]
[391939830,1761013842626,-354.594908,0.0002,7]
[391939831,1761013842635,-1268.56072024,0.00021032,2]
[391939832,1761013842644,-12021.43527723,0.00021293,2]
[391939837,1761013845670,-307.76250441,0.0002,7]
[391939838,1761013845776,-220.17994959,0.0002,7]
[391939839,1761013845786,-573.23605042,0.00020924,2]
[391939840,1761013845884,-68.29394958,0.00020924,2]
[391939841,1761013845894,-305.43941042,0.00021293,2]
[391939875,1761014884924,171.84,0.00024932,120]
[391939876,1761014885252,171.84,0.00028048,120]
[391939887,1761015031673,-300.0,0.00016455,2]
[391939888,1761015031684,-250.0,0.00016457,2]
[391939889,1761015031693,-300.0,0.00016457,2]
[391939890,1761015031703,-151.27884758,0.00016714,2]
[391939891,1761015031713,-150.0,0.00016991,2]
[391939892,1761015031722,-300.0,0.00016991,2]
[391939893,1761015031735,-250.0,0.00017,2]
[391939894,1761015031746,-1200.0,0.00018086,2]
[391939895,1761015031755,-1200.0,0.00018087,2]
[391939896,1761015031764,-476.0,0.00018087,2]
[391939897,1761015031774,-300.0,0.00018087,2]
[391939898,1761015031783,-200.0,0.00018088,2]
[391939899,1761015031792,-200.0,0.00018088,2]
[391939900,1761015031801,-201.53321539,0.00018088,2]
[391939901,1761015031811,-151.0,0.00018088,2]
[391939902,1761015031820,-151.0,0.00018088,2]
[391939903,1761015031829,-151.0,0.00018088,2]
[391939904,1761015031838,-151.0,0.00018088,2]
[391939905,1761015031847,-151.0,0.00018088,2]
[391939906,1761015031858,-151.0,0.00018088,2]
[391939907,1761015031868,-151.0,0.00018088,2]
[391939908,1761015031877,-151.0,0.00018088,2]
[391939909,1761015031886,-151.0,0.00018088,2]
[391939910,1761015031895,-151.0,0.00018088,2]
[391939911,1761015031905,-151.0,0.00018088,2]
[391939912,1761015031915,-151.0,0.00018088,2]
[391939913,1761015031924,-500.0,0.00018088,2]
[391939914,1761015031934,-151.0,0.00018088,2]
[391939915,1761015031943,-500.0,0.00018088,2]
[391939916,1761015031953,-151.0,0.00018088,2]
[391939917,1761015031962,-500.0,0.00018088,2]
[391939918,1761015031971,-151.0,0.00018088,2]
[391939919,1761015031980,-500.0,0.00018088,2]
[391939920,1761015031989,-151.0,0.00018088,2]
[391939921,1761015031998,-500.0,0.00018088,2]
[391939922,1761015032008,-151.0,0.00018088,2]
[391939923,1761015032017,-500.0,0.00018088,2]
[391939924,1761015032026,-151.0,0.00018088,2]
[391939925,1761015032036,-500.0,0.00018088,2]
[391939927,1761015032045,-151.0,0.00018088,2]
[391939929,1761015032055,-500.0,0.00018088,2]
[391939931,1761015032064,-151.0,0.00018088,2]
[391939933,1761015032073,-151.0,0.00018088,2]
[391939935,1761015032082,-151.0,0.00018088,2]
[391939937,1761015032092,-151.0,0.00018088,2]
[391939939,1761015032101,-151.0,0.00018088,2]
[391939940,1761015032110,-151.0,0.00018088,2]
[391939943,1761015032119,-151.0,0.00018088,2]
[391939945,1761015032129,-151.0,0.00018088,2]
[391939947,1761015032139,-151.0,0.00018088,2]
[391939949,1761015032148,-151.0,0.00018088,2]
[391939951,1761015032157,-151.0,0.00018088,2]
[391939952,1761015032167,-151.0,0.00018088,2]
[391939954,1761015032177,-2500.0,0.00018099,2]
[391939955,1761015032186,-300.0,0.00018099,2]
[391939956,1761015032195,-304.73925943,0.00018099,2]
[391939957,1761015032204,-250.0,0.00018099,2]
[391939958,1761015032215,-300.0,0.00018099,2]
[391939959,1761015032225,-2500.0,0.00018099,2]
[391939960,1761015032234,-193.46494146,0.00018099,2]
[391939961,1761015032243,-300.0,0.00018099,2]
[391939962,1761015032252,-300.0,0.00018101,2]
[391939963,1761015032261,-475.93135235,0.00018468,2]
[391939964,1761015032270,-150.0,0.00018485,2]
[391939965,1761015032279,-201.26694162,0.00018636,2]
[391939966,1761015032289,-289.89738536,0.00018636,2]
[391939967,1761015032298,-171.84,0.00018699,2]
[391939968,1761015032307,-367.33,0.00019093,2]
[391939969,1761015032317,-166.66,0.00019094,2]
[391939970,1761015032327,-610.0,0.00019126,2]
[391939971,1761015032335,-373.37772484,0.00019205,2]
[391939972,1761015032345,-503.4632193,0.00019205,2]
[391939973,1761015032354,-500.0,0.00019205,2]
[391939974,1761015032363,-495.173066,0.00019205,2]
[391939975,1761015032372,-803.42800826,0.00019449,2]
[391939976,1761015032381,-166.66,0.00019496,2]
[391939977,1761015032390,-323.75,0.00019541,2]
[391939978,1761015032399,-803.42800826,0.00019669,2]
[391939979,1761015032409,-322.6107,0.00019669,2]
[391939980,1761015032419,-456.13752508,0.00019669,2]
[391939981,1761015032428,-1000.0,0.00019669,2]
[391939982,1761015032438,-1000.0,0.00019669,2]
[391939983,1761015032448,-1000.0,0.00019669,2]
[391939984,1761015032458,-1000.0,0.00019669,2]
[391939985,1761015032467,-1000.0,0.00019669,2]
[391939986,1761015032476,-1000.0,0.00019669,2]
[391939987,1761015032485,-1000.0,0.00019669,2]
[391939988,1761015032494,-1000.0,0.00019669,2]
[391939989,1761015032504,-1000.0,0.00019669,2]
[391939990,1761015032513,-1000.0,0.00019669,2]
[391939991,1761015032522,-1000.0,0.00019669,2]
[391939992,1761015032532,-1000.0,0.00019669,2]
[391939993,1761015032541,-1000.0,0.00019669,2]
[391939994,1761015032554,-1000.0,0.00019669,2]
[391939995,1761015032564,-1000.0,0.00019669,2]
[391939996,1761015032573,-1000.0,0.00019669,2]
[391939997,1761015032582,-1000.0,0.00019669,2]
[391939998,1761015032592,-1000.0,0.00019669,2]
[391939999,1761015032732,-267.46074303,0.00019669,2]
[391940000,1761015032743,-1000.0,0.00019669,2]
[391940001,1761015032753,-683.0191304,0.00019669,2]
[391940002,1761015032762,-508.80492831,0.00019753,2]
[391940003,1761015032771,-481.07,0.00019816,2]
[391940004,1761015032780,-166.66,0.00019898,2]
[391940005,1761015032789,-803.42800826,0.00019932,2]
[391940006,1761015032799,-1742.15443011,0.00019956,2]
[391940007,1761015032812,-1252.0134256,0.00019956,2]
[391940008,1761015032826,-500.0,0.00019954,2]
[391940009,1761015032835,-2241.16468483,0.00019956,2]
[391940010,1761015032850,-500.0,0.00019954,2]
[391940011,1761015032859,-319.78286601,0.00019956,2]
[391940012,1761015032875,-596.51100877,0.00019954,2]
[391940013,1761015032884,-1218.8669475,0.00019956,2]
[391940014,1761015037727,-294.75802627,0.00019956,2]
[391940214,1761015040001,-1069.30280025,0.00019956,2]
[391940217,1761015040012,-2771.53079644,0.00019956,2]
[391940219,1761015040021,-30000.0,0.0002,2]
[391940221,1761015040030,-803.42800826,0.00020035,2]
[391940223,1761015040039,-30401.4108605,0.00020056,2]
[391940225,1761015040048,-59315.8922401,0.00020056,2]
[391940227,1761015040057,-10007.5829816,0.00020056,2]
[391940229,1761015040066,-613.41729579,0.00020123,2]
[391940231,1761015040075,-166.66,0.000203,2]
[391940232,1761015040084,-803.42800826,0.00020393,2]
[391940235,1761015040094,-1000.0,0.00020518,2]
[391940237,1761015040103,-803.42800826,0.00020636,2]
[391940239,1761015040112,-166.66,0.00020702,2]
[391940241,1761015040121,-803.42800829,0.00020947,2]
[391940243,1761015040130,-666.0,0.00021012,3]
[391940245,1761015040139,-548.94510841,0.00021073,2]
[391940247,1761015040149,-252.53,0.00021077,2]
[391940249,1761015040158,-176.66653188,0.00021089,2]
[391940251,1761015040167,-500.0,0.00021089,2]
[391940253,1761015040176,-288.10143974,0.00021089,2]
[391940255,1761015040185,-383.3357183,0.00021089,2]
[391940256,1761015040195,-593.59381943,0.00021089,2]
[391940258,1761015040204,-500.0,0.00021089,2]
[391940261,1761015040214,-31700.28822314,0.0002109,2]
[391940263,1761015040223,-166.66,0.00021104,2]
[391940265,1761015040233,-695.0,0.00021253,2]
[391940267,1761015040242,-572.0,0.00021253,2]
[391940269,1761015040251,-1311.0,0.00021253,2]
[391940271,1761015040259,-2332.327,0.00021253,2]
[391940273,1761015040269,-902.0,0.00021253,2]
[391940275,1761015040277,-500.0,0.00021272,2]
[391940277,1761015040286,-162.77487531,0.00021273,2]
[391940279,1761015040295,-8461.18430431,0.00021273,2]
[391940281,1761015040304,-386.31365717,0.00021273,2]
[391940283,1761015040313,-207.0400568,0.00021293,2]
[391940284,1761015040322,-200.0,0.00021293,2]
[391940286,1761015040331,-200.0,0.00021293,2]
[391940288,1761015040340,-357.30049,0.00021293,2]
[391940290,1761015040349,-162.88,0.00021323,2]
[391940293,1761015040359,-1260.68325844,0.00021332,2]
[391940295,1761015040368,-510.57722772,0.00021333,2]
[391940297,1761015040377,-500.0,0.00021333,2]
[391940299,1761015040387,-505.43372094,0.00021333,2]
[391940301,1761015040396,-502.87680329,0.00021333,2]
[391940303,1761015040406,-507.81422809,0.00021333,2]
[391940305,1761015040416,-500.0,0.00021333,2]
[391940306,1761015040425,-514.60541365,0.00021333,2]
[391940308,1761015040435,-500.0,0.00021333,2]
[391940310,1761015040444,-502.66991092,0.00021333,2]
[391940312,1761015040454,-500.0,0.00021333,2]
[391940314,1761015040463,-500.0,0.00021333,2]
[391940316,1761015040472,-500.0,0.00021333,2]
[391940319,1761015040482,-9212.75908423,0.00021333,2]
[391940334,1761015040616,-800.0,0.00021333,2]
[391940336,1761015040629,-2558.82219588,0.00021333,2]
[391940338,1761015040640,-46375.81345035,0.00021333,2]
[391940340,1761015040651,-92564.69316402,0.00021333,2]
[391940783,1761015045980,-250.0,0.00021333,2]
[391940786,1761015223508,500.0,0.00029499,120]
[391940787,1761015223679,506.64265351,0.00029999,120]
[391940792,1761015309230,-265.39791114,0.00019694,2]
[391940795,1761015426596,402.63,0.00010967,2]
[391940796,1761015426826,402.63,0.00011544,2]
[391940797,1761015427027,402.63,0.00012122,2]
[391940798,1761015427273,402.63,0.00012699,2]
[391940799,1761015428871,-202.20062996,0.00013276,2]
[391940801,1761015432358,-153.15942376,0.00013276,2]
[391940802,1761015434531,-47.26994628,0.00013276,2]
[391940803,1761015434553,-252.73005372,0.00013853,2]
[391940819,1761016231770,-149.89994628,0.00013853,2]
[391940820,1761016231781,-402.63,0.00014431,2]
[391940821,1761016231791,-307.7812748,0.00015008,2]
[391940822,1761016231802,-379.36768173,0.00015008,2]
[391940823,1761016231812,-34.56893096,0.00015008,2]
[391940824,1761016231927,-260.23400569,0.00015008,2]
[391940825,1761016231981,-107.82706335,0.00015008,2]
[391940826,1761016231991,-300.0,0.00015238,2]
[391940827,1761016232001,-300.0,0.00015238,2]
[391940828,1761016232010,-1200.0,0.00015238,2]
[391940829,1761016232020,-300.0,0.00015239,2]
[391940830,1761016232029,-402.63,0.00015585,2]
[391940832,1761016232039,-402.63,0.00016162,2]
[391940834,1761016232048,-420.0,0.00016673,2]
[391940835,1761016232057,-187.03,0.00016712,2]
[391940837,1761016232066,-150.0,0.00016738,2]
[391940839,1761016232075,-150.0,0.00016738,2]
[391940841,1761016232084,-402.63,0.0001674,2]
[391940843,1761016232094,-250.0,0.00017276,2]
[391940845,1761016232103,-402.63,0.00017317,2]
[391940847,1761016232112,-402.63,0.00017894,2]
[391940849,1761016232122,-193.0,0.00018243,2]
[391940851,1761016232132,-402.63,0.00018471,2]
[391940852,1761016232141,-402.63,0.00019048,2]
[391940854,1761016232150,-475.93135235,0.00019619,2]
[391940856,1761016232160,-402.63,0.00019626,2]
[391940857,1761016232169,-2000.0,0.000197,2]
[391940859,1761016232181,-1001.0,0.000197,2]
[391940860,1761016232190,-402.63,0.00020203,2]
[391940861,1761016232200,-200.0,0.00020394,2]
[391940862,1761016232209,-250.0,0.00020719,2]
[391940863,1761016232218,-402.63,0.0002078,2]
[391940865,1761016232228,-10856.14,0.00021,2]
[391940867,1761016232238,-500.0,0.00021162,2]
[391940869,1761016232247,-202.02,0.0002117,2]
[391940871,1761016232256,-1000.0,0.0002117,2]
[391940873,1761016232265,-1000.0,0.0002117,2]
[391940875,1761016232275,-1000.0,0.0002117,2]
[391940877,1761016232285,-1000.0,0.0002117,2]
[391940879,1761016232296,-1000.0,0.0002117,2]
[391940881,1761016232305,-1000.0,0.0002117,2]
[391940882,1761016232316,-1000.0,0.0002117,2]
[391940883,1761016232327,-1000.0,0.0002117,2]
[391940884,1761016232337,-1000.0,0.0002117,2]
[391940885,1761016232346,-1000.0,0.0002117,2]
[391940886,1761016232356,-761.92270224,0.0002117,2]
[391940887,1761016232366,-902.0,0.00021257,2]
[391940888,1761016232375,-2548.0,0.00021257,2]
[391940889,1761016232384,-500.0,0.00021272,2]
[391940890,1761016232393,-500.0,0.0002133,2]
[391940891,1761016232403,-500.0,0.0002133,2]
[391940892,1761016232412,-500.0,0.0002133,2]
[391940893,1761016232422,-500.0,0.0002133,2]
[391940894,1761016232432,-500.0,0.0002133,2]
[391940895,1761016232442,-500.0,0.0002133,2]
[391940896,1761016232451,-500.0,0.0002133,2]
[391940897,1761016232460,-500.0,0.0002133,2]
[391940898,1761016232470,-500.0,0.0002133,2]
[391940899,1761016232487,-500.0,0.0002133,2]
[391940900,1761016232502,-500.0,0.0002133,2]
[391940901,1761016232512,-500.0,0.0002133,2]
[391940902,1761016232521,-500.0,0.0002133,2]
[391940903,1761016232531,-500.0,0.0002133,2]
[391940904,1761016232541,-500.0,0.0002133,2]
[391940905,1761016232551,-500.0,0.0002133,2]
[391940906,1761016232561,-500.0,0.0002133,2]
[391940907,1761016232577,-500.0,0.0002133,2]
[391940908,1761016232592,-500.0,0.0002133,2]
[391940909,1761016232601,-500.0,0.0002133,2]
[391940910,1761016232611,-500.0,0.0002133,2]
[391940911,1761016232621,-500.0,0.0002133,2]
[391940912,1761016232631,-500.0,0.0002133,2]
[391940913,1761016232640,-372.99573189,0.0002133,2]
[391940914,1761016232650,-500.0,0.0002133,2]
[391940915,1761016232660,-500.0,0.0002133,2]
[391940916,1761016232670,-11373.17642611,0.00021331,2]
[391940917,1761016232680,-431.406,0.00021332,2]
[391940918,1761016232690,-297.75041,0.00021333,2]
[391940919,1761016232700,-364.46916254,0.00021333,2]
[391940920,1761016232710,-174380.48761378,0.00021333,2]
[391940921,1761016232719,-402.63,0.00021357,2]
[391940922,1761016232729,-170.51,0.00021379,2]
[391940923,1761016232739,-1717.20287781,0.00021381,2]
[391940924,1761016232749,-7297.26231822,0.00021381,2]
[391940925,1761016232760,-157.54,0.00021428,2]
[391940926,1761016232769,-1176.42111772,0.00021442,2]
[391940927,1761016232779,-202.02,0.00021444,2]
[391940928,1761016232789,-161.94133353,0.00021543,2]
[391940929,1761016232798,-1788.86,0.00021627,2]
[391940930,1761016232808,-150.0,0.0002166,2]
[391940931,1761016232818,-1683.85,0.00021705,2]
[391940932,1761016232827,-250.0,0.00021705,7]
[391940933,1761016232837,-202.02,0.00021718,2]
[391940934,1761016232847,-1000.0,0.000218,2]
[391940935,1761016232856,-301.0,0.000218,2]
[391940936,1761016232867,-171.84,0.00021815,2]
[391940937,1761016232877,-5000.0,0.00021918,2]
[391940938,1761016232887,-402.63,0.00021935,2]
[391940939,1761016232898,-202.02,0.00021992,2]
[391940940,1761016232907,-500.0,0.00022037,2]
[391940941,1761016232917,-500.0,0.00022037,2]
[391940942,1761016232926,-764.0,0.00022077,2]
[391940943,1761016232940,-764.0,0.00022111,2]
[391940944,1761016232950,-1788.86,0.00022227,2]
[391940945,1761016232959,-202.05,0.00022266,2]
[391940946,1761016232969,-500.0,0.00022405,2]
[391940947,1761016232979,-764.0,0.00022406,2]
[391940948,1761016232989,-157.54,0.000225,2]
[391940949,1761016232998,-1091.0,0.00022571,2]
[391940950,1761016233008,-1000.75564392,0.00022585,2]
[391940951,1761016233017,-502.44712256,0.00022585,2]
[391940952,1761016233031,-1788.86,0.00022828,2]
[391940953,1761016233041,-764.0,0.00022877,2]
[391940954,1761016233051,-764.0,0.00022892,2]
[391940955,1761016233061,-1000.0,0.00023082,2]
[391940956,1761016233071,-764.0,0.0002321,2]
[391940957,1761016233081,-297.75042,0.00023333,2]
[391940958,1761016233090,-764.0,0.00023382,2]
[391940959,1761016233101,-764.0,0.0002339,2]
[391940960,1761016233112,-2000.0,0.000234,2]
[391940961,1761016233307,-764.0,0.00023451,2]
[391940962,1761016233319,-157.54,0.00023571,2]
[391940963,1761016233329,-5512.0,0.000237,5]
[391940964,1761016233339,-764.0,0.00023731,2]
[391940965,1761016233348,-764.0,0.00023742,2]
[391940966,1761016233358,-1091.0,0.00023759,2]
[391940967,1761016233367,-669.67,0.00023836,2]
[391940968,1761016233378,-677.48,0.00023936,2]
[391940969,1761016233387,-473.91,0.00023936,2]
[391940970,1761016233397,-485.85,0.00023942,2]
[391940971,1761016233406,-711.45,0.00023942,2]
[391940972,1761016233415,-475.11,0.00023942,2]
[391940973,1761016233425,-475.11,0.00023942,2]
[391940974,1761016233435,-695.75,0.00023942,2]
[391940975,1761016233446,-475.11,0.00023942,2]
[391940976,1761016233455,-483.42,0.00023945,2]
[391940977,1761016233465,-11030.26093296,0.00024,2]
[391940978,1761016233474,-176.22,0.00024082,2]
[391940979,1761016233487,-150.82,0.00024082,2]
[391940980,1761016233497,-547.23,0.00024082,2]
[391940981,1761016233507,-336.17,0.00024082,2]
[391940982,1761016233516,-414.05,0.00024082,2]
[391940983,1761016233525,-150.0,0.00024082,2]
[391940984,1761016233534,-547.23,0.00024082,2]
[391940985,1761016233544,-176.22,0.00024082,2]
[391940986,1761016233553,-150.0,0.00024082,2]
[391940987,1761016233562,-414.05,0.00024082,2]
[391940988,1761016233571,-176.22,0.00024082,2]
[391940989,1761016233580,-414.05,0.00024082,2]
[391940990,1761016233589,-150.0,0.00024082,2]
[391940991,1761016233599,-176.22,0.00024082,2]
[391940992,1761016233608,-176.22,0.00024082,2]
[391940993,1761016233618,-500.0,0.0002417,2]
[391940994,1761016233627,-200.0,0.0002417,2]
[391940995,1761016233636,-1676.05,0.00024174,2]
[391940996,1761016233646,-902.0,0.00024257,2]
[391940997,1761016233655,-2548.0,0.00024257,2]
[391940998,1761016233664,-1020.0,0.000245,2]
[391940999,1761016233674,-157.54,0.00024642,2]
[391941000,1761016233687,-1000.0,0.00024658,2]
[391941001,1761016233697,-255.65,0.00024658,2]
[391941002,1761016233706,-500.0,0.00024799,2]
[391941003,1761016233718,-500.0,0.00024799,2]
[391941004,1761016233727,-500.0,0.00024799,2]
[391941005,1761016233737,-500.0,0.00024899,2]
[391941006,1761016233747,-500.0,0.00024932,2]
[391941007,1761016233756,-1091.0,0.00024947,2]
[391941008,1761016233766,-12082.41116454,0.00025253,2]
[391941009,1761016233776,-297.75041,0.00025333,2]
[391941010,1761016233786,-549.08,0.00025646,2]
[391941011,1761016233796,-1000.0,0.00025647,2]
[391941012,1761016233806,-157.4,0.00025667,2]
[391941013,1761016233815,-168.0,0.00026083,2]
[391941014,1761016233824,-1091.0,0.00026194,2]
[391941015,1761016233834,-1000.0,0.000262,2]
[391941016,1761016233844,-1199.28,0.00026408,2]
[391941017,1761016233854,-12082.41116454,0.00026516,2]
[391941018,1761016233863,-150.0,0.00026532,2]
[391941019,1761016233875,-150.0,0.00026532,2]
[391941020,1761016233885,-150.0,0.00026532,2]
[391941021,1761016233894,-150.75442953,0.00026532,2]
[391941022,1761016233904,-150.0,0.00026532,2]
[391941023,1761016233913,-150.0,0.00026532,2]
[391941024,1761016233923,-150.67562317,0.00026532,2]